bitfinex/quotes_ETHUSD_20250724
["timestamp","ask_amount","ask_price","bid_price","bid_amount"]
[1753385853309,0.55,3736.3,3735.9,0.4521]
[1753385853499,0.55,3736.3,3736.0,0.4629]
[1753385855674,3.22644495,3736.3,3736.0,0.4629]
[1753385855946,3.0,3736.4,3736.0,0.4629]
[1753385855947,0.55,3736.4,3736.1,1.7079]
[1753385856152,0.55,3736.4,3736.2,0.4629]
[1753385856550,0.55,3736.4,3735.9,0.4629]
[1753385856715,0.55,3736.4,3735.8,3.92173286]
[1753385856918,0.55,3736.4,3736.0,0.4629]
[1753385857114,0.55,3736.4,3736.1,0.4629]
[1753385858318,0.55,3736.4,3736.2,0.4629]
[1753385858550,0.55,3736.4,3735.8,2.67675163]
[1753385858715,0.55,3736.4,3736.0,0.915]
[1753385858916,0.55,3736.4,3736.1,3.13947299]
[1753385859353,0.55,3736.4,3736.2,0.4629]
[1753385859726,0.7788,3737.0,3736.3,0.4629]
[1753385860051,3.0,3736.9,3736.5,2.67624799]
[1753385860415,3.0,3736.9,3736.6,3.13912777]
[1753385860617,3.0,3736.9,3736.6,0.4629]
[1753385861464,3.0,3736.9,3736.5,0.4521]
[1753385861764,0.1336,3736.7,3736.5,2.67628445]
[1753385862361,0.1336,3736.7,3736.5,3.13918445]
[1753385862548,0.1336,3736.7,3736.6,2.67622972]
[1753385862869,0.1336,3736.7,3736.6,0.4629]
[1753385863838,0.1336,3736.7,3736.6,3.13912972]
[1753385864043,0.1336,3736.7,3736.6,3.59122972]
[1753385864444,0.1336,3736.7,3736.6,0.915]
[1753385864664,0.1336,3736.7,3736.6,3.59122972]
[1753385865031,0.1336,3736.7,3736.6,0.915]
[1753385865564,0.1336,3736.7,3736.6,3.59122972]
[1753385866966,4.327,3736.9,3736.8,2.67608247]
[1753385867143,4.327,3736.9,3736.6,6.97309259]
[1753385867144,4.327,3736.9,3736.7,2.67614078]
[1753385867341,0.1336,3736.8,3736.6,6.49449259]
[1753385867549,0.1336,3736.8,3736.7,0.4786]
[1753385867749,0.1336,3736.8,3736.7,3.6284581]
[1753385868057,0.002,3737.0,3736.9,3.45011487]
[1753385868569,0.002,3737.0,3736.9,4.40241487]
[1753385869141,0.002,3737.0,3736.9,1.2527]
[1753385869367,0.44836,3737.0,3736.4,1.2478]
[1753385869572,0.1336,3736.8,3736.6,2.67622822]
[1753385869880,0.1336,3736.8,3736.3,0.1336]
[1753385870043,0.6836,3736.6,3736.2,2.67645353]
[1753385870372,0.1336,3736.4,3736.2,2.67645353]
[1753385870571,0.1336,3736.4,3736.1,0.4786]
[1753385870572,0.1336,3736.4,3736.3,3.15504461]
[1753385870732,0.002,3737.0,3736.3,2.21348251]
[1753385870936,0.1336,3736.8,3736.6,2.67620525]
[1753385871168,0.1336,3736.8,3736.6,3.15480525]
[1753385871458,0.1336,3736.8,3736.7,2.6761581]
[1753385872061,0.1336,3736.8,3736.7,3.6284581]
[1753385872261,4.4566,3736.8,3736.7,0.9523]
[1753385872502,4.4566,3736.8,3736.7,3.6284581]
[1753385873053,0.1336,3736.8,3736.6,2.67621032]
[1753385873274,0.1336,3736.8,3736.5,6.02079259]
[1753385873480,0.1336,3736.8,3736.5,8.69708036]
[1753385875073,0.1336,3736.8,3736.7,0.9523]
[1753385875240,0.1336,3736.8,3736.7,3.6284581]
[1753385877177,2.67658788,3736.1,3735.6,0.001]
[1753385877381,11.33934522,3736.1,3735.6,0.001]
[1753385877556,29.14148874,3736.1,3735.6,0.001]
[1753385877755,29.71429527,3736.1,3735.6,0.001]
[1753385877967,15.21429527,3736.1,3735.6,0.001]
[1753385878142,10.89529527,3736.1,3735.6,0.001]
[1753385878482,15.21329527,3736.1,3735.6,0.001]
[1753385878847,14.73969527,3736.1,3735.6,0.001]
[1753385879049,15.21329527,3736.1,3735.6,0.001]
[1753385879280,15.21329527,3736.1,3736.0,1e-08]
[1753385879281,15.46157441,3736.1,3736.0,1e-08]
[1753385881852,29.96157441,3736.1,3736.0,1e-08]
[1753385884300,29.71329527,3736.1,3736.0,1e-08]
[1753385885405,29.14048874,3736.1,3736.0,1e-08]
[1753385886896,20.91878874,3736.1,3736.0,1e-08]
[1753385887112,25.58648874,3736.1,3736.0,1e-08]
[1753385887263,11.22008874,3736.1,3736.0,1e-08]
[1753385887463,11.77008874,3736.1,3736.0,1e-08]
[1753385887660,14.77008874,3736.1,3736.0,1e-08]
[1753385888867,14.29648874,3736.1,3736.0,1e-08]
[1753385889095,14.77008874,3736.1,3736.0,1e-08]
[1753385889272,20.79088133,3736.1,3736.0,1e-08]
[1753385890580,22.39688133,3736.1,3736.0,1e-08]
[1753385891281,36.89688133,3736.1,3736.0,1e-08]
[1753385892806,3.9777178,3735.5,3735.4,1e-08]
[1753385893010,17.44411039,3735.5,3735.4,1e-08]
[1753385893305,19.95381039,3735.5,3735.4,1e-08]
[1753385894210,0.7507,3734.7,3734.2,0.001]
[1753385894525,6.97857804,3734.3,3734.2,0.001]
[1753385894673,11.28857804,3734.3,3734.2,0.001]
[1753385894869,12.32587804,3734.3,3734.2,0.001]
[1753385896883,11.42117804,3734.3,3734.2,0.001]
[1753385897124,12.33347804,3734.3,3734.2,0.001]
[1753385898578,12.33347804,3734.3,3734.2,1e-08]
[1753385898812,14.7653789,3734.3,3734.2,1e-08]
[1753385899782,10.4563789,3734.3,3734.2,1e-08]
[1753385900079,14.7643789,3734.3,3734.2,1e-08]
[1753385901115,14.6307789,3734.3,3734.2,1e-08]
[1753385901621,16.8043733,3734.3,3734.2,1e-08]
[1753385901913,2.67895413,3732.8,3732.7,0.001]
[1753385902119,10.53695413,3732.8,3732.7,0.001]
[1753385902541,10.98945413,3732.8,3732.7,0.001]
[1753385902812,10.53695413,3732.8,3732.7,0.001]
[1753385903990,10.98945413,3732.8,3732.7,0.001]
[1753385904888,10.53695413,3732.8,3732.7,0.001]
[1753385905126,11.20484658,3732.8,3732.7,0.001]
[1753385905322,11.64735098,3732.8,3732.7,0.001]
[1753385905714,12.09985098,3732.8,3732.7,0.001]
[1753385906313,13.33965098,3732.8,3732.7,0.001]
[1753385906625,0.55,3731.4,3730.9,0.8281]
[1753385906827,5.68018145,3731.1,3730.9,0.8281]
[1753385907009,7.305,3731.0,3730.9,0.466]
[1753385907330,7.305,3731.0,3730.6,1.7324]
[1753385907331,2.68039026,3730.8,3730.6,1.7324]
[1753385907498,4.856,3730.7,3730.6,0.8281]
[1753385908127,10.53646211,3730.7,3730.6,1.7324]
[1753385908326,10.53646211,3730.7,3728.9,9.65175244]
[1753385908327,0.55,3730.5,3730.3,0.7542]
[1753385908529,6.23067767,3730.4,3730.3,0.7542]
[1753385908827,6.23067767,3730.4,3729.1,0.01354696]
[1753385908828,0.55,3730.3,3729.9,0.7542]
[1753385908991,3.23096514,3730.0,3729.9,0.7542]
[1753385909193,0.55,3730.0,3729.9,0.7542]
[1753385909392,4.855,3730.0,3729.9,1.2202]
[1753385909731,4.855,3730.0,3729.9,1.6585]
[1753385910120,7.53596514,3730.0,3729.9,1.6585]
[1753385910439,7.53596514,3730.0,3729.9,1.2202]
[1753385910440,10.53596514,3730.0,3729.9,1.2202]
[1753385910592,10.53596514,3730.0,3729.9,1.6585]
[1753385911106,10.67036514,3730.0,3729.9,0.7542]
[1753385911307,0.55,3729.5,3729.4,0.8174]
[1753385911611,0.55,3729.5,3728.5,2.68203443]
[1753385911612,0.1344,3729.3,3728.7,0.9043]
[1753385911831,0.55,3728.7,3728.5,1.6555]
[1753385912136,0.55,3728.7,3728.5,0.7512]
[1753385912137,4.4384,3728.6,3728.5,0.7512]
[1753385912308,4.4384,3728.6,3728.1,0.7512]
[1753385912511,10.53597178,3728.6,3728.5,0.9043]
[1753385912694,7.854,3728.6,3728.5,0.9043]
[1753385912899,7.9884,3728.6,3728.5,0.9043]
[1753385913134,10.67037178,3728.6,3728.5,0.466]
[1753385913342,0.55,3728.1,3727.6,0.7512]
[1753385913650,0.1344,3727.8,3727.7,0.9043]
[1753385913825,0.1344,3727.8,3727.7,3.5869193]
[1753385914010,4.4384,3727.8,3727.7,3.5869193]
[1753385914334,4.304,3727.8,3727.7,3.5869193]
[1753385914933,0.1344,3727.9,3727.7,3.5869193]
[1753385914934,0.1344,3727.9,3727.8,2.68254734]
[1753385915142,0.19957663,3728.4,3728.3,3.44818759]
[1753385915322,7.63697663,3728.4,3728.3,1.6703]
[1753385915635,3.32424316,3728.4,3728.3,4.35248759]
[1753385915848,7.62724316,3728.4,3728.3,4.35248759]
[1753385916022,3.32424316,3728.4,3728.3,1.6703]
[1753385916230,7.62824316,3728.4,3728.3,1.6703]
[1753385916425,3.32424316,3728.4,3728.3,1.6703]
[1753385916739,0.32424316,3728.4,3728.3,4.35248759]
[1753385916938,4.62824316,3728.4,3728.3,4.35248759]
[1753385918537,0.32424316,3728.4,3728.3,4.35248759]
[1753385918743,4.62724316,3728.4,3728.3,4.35248759]
[1753385918906,4.62724316,3728.4,3728.3,1.6703]
[1753385919501,0.32424316,3728.4,3728.3,1.6703]
[1753385919817,4.62724316,3728.4,3728.3,1.6703]
[1753385920011,4.62724316,3728.4,3728.3,4.35248759]
[1753385920211,0.18984316,3728.4,3728.3,5.05597063]
[1753385921544,0.18984316,3728.4,3728.3,5.19037063]
[1753385923452,0.18984316,3728.4,3728.3,4.48688759]
[1753385928974,0.18984316,3728.4,3728.3,4.50608759]
[1753385929873,0.18984316,3728.4,3728.3,4.56168759]
[1753385930042,0.1344,3729.2,3728.9,2.68173134]
[1753385930678,0.1344,3729.4,3729.1,3.50321218]
[1753385930833,0.1344,3729.4,3729.2,2.68148887]
[1753385931034,0.1344,3729.4,3729.2,3.59888887]
[1753385931234,0.1344,3729.4,3729.2,2.68148887]
[1753385931434,0.1344,3729.4,3729.3,0.9174]
[1753385932359,0.1344,3729.4,3729.3,0.4852]
[1753385932939,0.1344,3729.4,3729.3,0.9174]
[1753385933142,3.0,3729.5,3729.3,0.9174]
[1753385933374,3.0,3730.1,3729.5,2.68130708]
[1753385933547,3.0,3730.1,3729.4,0.9174]
[1753385933548,0.1344,3729.7,3729.6,2.68121795]
[1753385933877,2.68066917,3730.5,3729.7,3.46347953]
[1753385934050,0.1344,3730.0,3729.7,1.2675]
[1753385934570,0.1344,3730.0,3729.7,1.6997]
[1753385934775,0.1344,3730.0,3729.8,0.4852]
[1753385934973,5.68109058,3729.9,3729.8,0.9174]
[1753385935338,2.68140523,3729.4,3728.9,1.2512]
[1753385935665,3.0,3729.4,3729.0,0.9174]
[1753385935871,0.1344,3729.3,3729.1,0.9174]
[1753385936043,3.90639655,3729.9,3729.2,1.0518]
[1753385936044,4.86362131,3729.9,3729.2,1.0518]
[1753385936236,0.1344,3729.7,3729.3,0.9174]
[1753385936431,0.70302131,3729.7,3729.4,0.9174]
[1753385936777,3.0,3729.9,3729.5,4.36470018]
[1753385936947,0.5692836,3729.9,3729.6,2.68123985]
[1753385937150,3.7036836,3730.0,3729.7,0.9174]
[1753385937348,0.5692836,3729.9,3729.7,0.9174]
[1753385937672,0.5692836,3729.9,3729.6,2.68123985]
[1753385937673,3.1344,3730.0,3729.8,0.9174]
[1753385937857,3.1344,3730.0,3729.7,2.68116527]
[1753385938173,4.294,3730.1,3729.9,0.9174]
[1753385938349,0.56979925,3730.0,3729.9,0.4322]
[1753385938668,0.56979925,3730.0,3729.9,2.68103702]
[1753385938875,0.56979925,3730.1,3729.6,0.1344]
[1753385939063,4.4284,3730.2,3729.9,3.59843448]
[1753385939370,4.4284,3730.2,3729.6,2.81562109]
[1753385939371,0.570154,3730.1,3730.0,3.59836514]
[1753385939573,0.570154,3730.1,3730.0,2.68096514]
[1753385939870,3.7063582,3730.6,3730.1,0.766]
[1753385940171,3.1344,3730.4,3730.2,0.9174]
[1753385940379,0.57046009,3730.3,3730.1,3.44683653]
[1753385940576,3.24760381,3730.6,3730.2,2.6808214]
[1753385940745,0.57087193,3730.5,3730.1,3.44688437]
[1753385940940,0.57087193,3730.4,3730.2,0.9174]
[1753385941171,0.57087193,3730.3,3730.1,3.44688437]
[1753385941346,3.1344,3730.6,3730.1,3.44688437]
[1753385941649,0.57100329,3730.5,3730.1,3.44688437]
[1753385941838,0.57100329,3730.4,3730.3,2.68074953]
[1753385942164,3.0,3730.6,3730.4,2.68065237]
[1753385942365,3.0,3730.6,3730.5,0.9174]
[1753385942586,3.57082142,3730.6,3730.5,0.9174]
[1753385943473,3.0,3730.6,3730.5,0.9174]
[1753385943791,3.1344,3730.7,3730.5,0.9174]
[1753385943982,3.95276939,3730.7,3730.5,0.9174]
[1753385944188,3.70501832,3730.7,3730.5,0.9174]
[1753385944346,3.1344,3730.7,3730.5,0.9174]
[1753385944548,3.38213789,3730.7,3730.5,0.9174]
[1753385944747,3.1344,3730.7,3730.5,0.9174]
[1753385944979,3.38213806,3730.7,3730.5,0.9174]
[1753385945154,3.1344,3730.7,3730.5,0.9174]
[1753385945571,3.1344,3730.7,3730.5,0.4852]
[1753385947045,3.1344,3730.7,3730.6,0.9174]
[1753385947857,3.1344,3730.7,3730.6,0.4852]
[1753385948256,3.1344,3730.7,3730.6,0.9174]
[1753385948257,4.4224,3730.7,3730.6,0.9174]
[1753385948972,4.4224,3730.7,3730.6,0.4322]
[1753385949796,7.4224,3730.7,3730.6,0.4322]
[1753385950168,3.1344,3730.7,3730.6,0.4322]
[1753385950372,3.0,3730.6,3730.4,2.68066104]
[1753385950593,0.1344,3731.2,3730.6,10.89171416]
[1753385950788,3.0,3731.5,3731.1,6.03811416]
[1753385951107,4.4196,3731.6,3731.2,0.9174]
[1753385951251,3.0,3731.5,3731.1,0.8919]
[1753385951456,3.0,3731.5,3730.8,2.68032086]
[1753385951457,3.4404,3731.5,3730.8,0.7575]
[1753385951704,0.1344,3731.2,3730.9,2.68031524]
[1753385951998,0.1344,3731.2,3730.8,3.43787622]
[1753385952302,0.1344,3731.2,3730.9,0.9174]
[1753385952889,0.1344,3731.2,3731.0,0.9174]
[1753385953455,0.1344,3731.2,3731.1,3.59757474]
[1753385953655,0.1336,3731.6,3731.1,2.23963278]
[1753385953881,3.1336,3731.6,3731.2,3.11230291]
[1753385954084,3.1336,3731.6,3731.3,0.9174]
[1753385954460,0.002,3731.5,3731.3,0.9174]
[1753385954659,0.002,3731.5,3731.0,0.1344]
[1753385954870,0.1344,3731.3,3730.9,4.284]
[1753385955072,0.1344,3731.3,3730.9,5.2014]
[1753385955284,0.1344,3731.3,3731.0,0.9259]
[1753385956489,3.1344,3731.1,3730.6,4.284]
[1753385956691,0.1344,3730.9,3730.6,4.284]
[1753385957189,0.1344,3730.9,3730.6,4.7721]
[1753385957558,0.1344,3730.9,3730.6,0.4881]
[1753385957888,3.1344,3730.9,3730.6,0.4881]
[1753385958093,0.1344,3730.9,3730.6,0.4881]
[1753385958789,0.1344,3730.9,3730.6,4.7701]
[1753385958994,0.1344,3730.9,3730.6,4.282]
[1753385960895,0.1344,3730.9,3730.6,4.281]
[1753385961270,0.1344,3730.9,3730.6,0.4881]
[1753385961476,0.1344,3730.9,3730.6,4.7691]
[1753385962798,0.1344,3730.9,3730.6,5.2069]
[1753385962999,0.1344,3730.9,3730.4,6.03811416]
[1753385963178,0.1344,3730.9,3730.5,4.28]
[1753385963378,0.1344,3730.9,3730.5,4.7681]
[1753385963578,0.1344,3730.9,3730.6,0.4881]
[1753385963778,0.1344,3730.9,3730.6,0.9259]
[1753385964900,0.1344,3730.9,3730.7,0.9259]
[1753385965205,3.0,3730.4,3729.5,3.47056325]
[1753385965370,0.1344,3730.1,3729.8,0.9259]
[1753385965572,0.1344,3730.1,3730.0,0.9259]
[1753385965767,0.1344,3730.4,3730.0,0.9259]
[1753385966068,2.8151052,3730.4,3730.0,0.9259]
[1753385966267,0.1344,3730.4,3730.1,0.9259]
[1753385966498,2.81509739,3730.4,3730.1,0.9259]
[1753385966807,3.0,3730.3,3730.1,0.9259]
[1753385967186,3.1344,3730.4,3730.1,0.9259]
[1753385967787,0.1344,3730.4,3730.0,6.95894456]
[1753385967998,0.1344,3730.4,3730.2,0.9259]
[1753385968385,0.1344,3730.6,3730.1,6.86691416]
[1753385968686,0.1344,3730.6,3730.3,0.9259]
[1753385968884,0.1344,3730.6,3730.1,7.00131416]
[1753385968885,0.1344,3730.6,3730.5,6.03811416]
[1753385969083,0.1344,3730.8,3730.5,6.03811416]
[1753385969284,0.1344,3730.8,3730.5,0.4881]
[1753385969285,5.81480374,3730.8,3730.5,0.4881]
[1753385969489,5.81480374,3730.8,3730.3,0.1344]
[1753385969703,5.81480374,3730.8,3730.3,1.0603]
[1753385969906,3.0,3730.3,3729.9,0.001]
[1753385970206,6.50546514,3730.0,3729.9,0.001]
[1753385970408,0.55,3729.9,3728.7,3.34858134]
[1753385970736,0.55,3729.9,3728.0,0.807]
[1753385970737,0.7505,3729.6,3728.0,0.807]
[1753385971017,6.23154027,3729.2,3728.3,0.9259]
[1753385971374,11.40854027,3729.2,3728.3,0.9259]
[1753385971907,3.0,3729.2,3728.2,4.276]
[1753385972205,3.0,3729.2,3728.8,0.4881]
[1753385972570,2.68113112,3729.8,3729.1,3.60851218]
[1753385972878,8.0733,3729.9,3729.2,0.804]
[1753385973075,3.0,3729.7,3729.3,0.0135606]
[1753385973274,4.275,3729.9,3729.2,0.804]
[1753385973504,0.55,3730.0,3729.4,2.68134249]
[1753385973816,0.55,3730.1,3729.7,2.68112705]
[1753385974012,4.275,3730.4,3729.8,0.9259]
[1753385974310,3.13526416,3730.7,3729.8,1.2921]
[1753385974311,2.68060034,3730.6,3729.8,1.2921]
[1753385974476,2.68060034,3730.6,3729.9,2.68101594]
[1753385974978,0.55,3730.4,3729.8,4.41099025]
[1753385975711,3.0,3730.3,3729.8,1.7299]
[1753385975917,3.0,3730.3,3729.8,0.804]
[1753385976279,3.30380956,3730.3,3729.8,0.804]
[1753385976506,3.0,3730.2,3729.8,0.804]
[1753385976782,3.0,3730.3,3729.8,1.2921]
[1753385977003,3.0,3730.6,3729.9,3.60693702]
[1753385977207,3.0,3730.6,3729.9,0.4881]
[1753385977673,5.6805838,3730.6,3729.9,3.16912877]
[1753385977874,5.6805838,3730.6,3729.9,3.60692877]
[1753385978077,0.002,3730.4,3730.0,2.68094491]
[1753385978493,0.002,3730.4,3730.1,0.9259]
[1753385978893,0.002,3730.4,3730.2,0.4881]
[1753385980016,0.1364,3730.4,3730.2,0.4881]
[1753385980586,0.002,3730.4,3730.3,0.9259]
[1753385981112,0.002,3730.4,3730.3,0.4881]
[1753385984016,0.002,3730.4,3730.3,3.60664953]
[1753385984202,0.002,3730.4,3730.3,4.25019847]
[1753385984403,0.002,3730.4,3730.3,5.03559847]
[1753385984721,0.002,3730.4,3730.3,5.16999847]
[1753385985294,0.002,3730.4,3730.3,4.52644953]
[1753385985495,0.002,3730.4,3730.3,1.8457]
[1753385985888,0.002,3730.4,3730.3,4.52644953]
[1753385989026,0.002,3730.4,3730.3,4.48954953]
[1753385994095,0.002,3731.2,3731.1,3.49447474]
[1753385994422,0.002,3731.2,3731.1,10.22346267]
[1753385994628,0.002,3731.2,3731.1,10.34433154]
[1753385997499,0.0005001,3731.2,3731.1,10.34433154]
[1753385999292,0.0005001,3731.2,3731.1,2.9361568]
[1753385999497,0.0005001,3731.2,3731.0,4.264]
[1753386000015,0.0005001,3731.2,3731.1,3.59337474]
[1753386000240,0.0005001,3731.2,3731.1,3.60690587]
[1753386000550,0.0005001,3731.2,3731.1,13.5638381]
[1753386000704,0.002,3731.5,3731.4,3.44905926]
[1753386000899,0.002,3731.5,3731.4,9.61661649]
[1753386001132,0.002,3731.5,3731.4,10.51629075]
[1753386001433,0.002,3731.5,3731.4,12.28446484]
[1753386001639,0.002,3731.5,3731.4,16.54746484]
[1753386002428,0.002,3731.5,3731.4,0.7691]
[1753386002656,0.002,3731.5,3731.4,4.262]
[1753386003002,0.002,3731.5,3730.9,0.7735]
[1753386003003,0.946,3731.5,3730.9,0.7735]
[1753386003205,1.2597,3731.4,3730.6,3.45401786]
[1753386003434,1.7328,3731.4,3730.9,2.68030498]
[1753386003612,1.7328,3731.4,3731.0,4.262]
[1753386004366,2.68010291,3731.2,3731.1,4.262]
[1753386004559,2.68004208,3731.3,3731.1,4.262]
[1753386005165,3.93968095,3731.4,3731.1,4.262]
[1753386005874,3.9396826,3731.4,3731.1,4.262]
[1753386006428,2.68003461,3731.3,3731.1,4.262]
[1753386006628,2.68194457,3731.5,3731.1,4.262]
[1753386006929,3.15284457,3731.5,3731.1,4.262]
[1753386007347,2.67998147,3731.4,3731.1,4.262]
[1753386007554,3.15088147,3731.4,3731.1,4.262]
[1753386008156,3.62398147,3731.4,3731.1,4.262]
[1753386008473,0.944,3731.4,3731.1,4.262]
[1753386008843,0.4709,3731.4,3731.1,4.262]
[1753386009167,0.944,3731.4,3731.1,4.262]
[1753386009868,0.1356,3731.5,3731.1,4.262]
[1753386010066,0.4709,3731.4,3731.1,4.262]
[1753386011171,0.944,3731.4,3731.1,4.262]
[1753386012471,0.4709,3731.3,3731.1,4.262]
[1753386012771,0.4731,3731.3,3731.1,4.258]
[1753386012951,0.944,3731.2,3731.1,4.258]
[1753386013147,1.0796,3731.5,3731.1,4.258]
[1753386013375,0.7941,3731.3,3730.9,4.258]
[1753386013547,0.7941,3731.3,3730.8,0.1344]
[1753386013548,2.68018052,3731.1,3730.8,4.258]
[1753386013750,3.94966306,3731.3,3730.0,0.7937]
[1753386013751,1.494,3731.0,3730.0,0.7937]
[1753386014084,3.62425512,3731.0,3730.2,2.68075304]
[1753386014372,3.944,3731.0,3730.3,2.680722]
[1753386014568,3.944,3731.0,3730.4,2.68066142]
[1753386014740,0.7941,3731.3,3730.6,9.17698594]
[1753386015074,0.002,3731.5,3731.0,2.68019836]
[1753386015372,3.0,3731.2,3730.4,1.7687749]
[1753386015572,3.0,3731.2,3730.0,0.4476]
[1753386015573,0.7633,3730.8,3730.2,6.9387748]
[1753386015736,0.9145,3730.7,3730.2,4.258]
[1753386016080,0.4727,3730.7,3730.2,6.9388017]
[1753386016234,0.7633,3730.8,3730.2,6.9388017]
[1753386016235,0.7633,3730.8,3730.5,2.68059186]
[1753386016973,3.91639307,3730.8,3730.2,4.7124]
[1753386017168,3.91639307,3730.8,3729.9,2.68202172]
[1753386017169,1.4229638,3730.8,3729.9,0.001]
[1753386017385,3.0,3730.6,3729.9,2.68198159]
[1753386017595,5.0203,3730.8,3729.9,0.4554]
[1753386017746,3.0,3730.7,3730.1,2.68083545]
[1753386018095,3.0,3730.7,3730.1,2.68088495]
[1753386018587,3.0,3730.7,3729.9,1.6647]
[1753386018588,0.9145,3730.7,3729.9,4.34567261]
[1753386018788,0.9145,3730.7,3729.9,0.74440128]
[1753386019090,2.68060581,3730.5,3729.9,0.001]
[1753386019557,2.68067907,3730.4,3729.9,0.001]
[1753386019752,2.68075668,3730.3,3729.9,0.001]
[1753386019952,0.9145,3730.3,3729.9,2.68202972]
[1753386020170,0.4418,3730.2,3729.9,0.001]
[1753386021438,0.4727,3730.3,3730.0,2.68094532]
[1753386021643,0.4418,3730.5,3730.0,2.68094532]
[1753386021943,0.7517,3730.3,3729.9,0.001]
[1753386022361,0.4418,3730.2,3729.9,0.001]
[1753386022566,0.7517,3730.3,3730.0,2.68095579]
[1753386022875,0.7517,3730.3,3729.9,2.68201864]
[1753386023782,0.7517,3730.3,3730.0,2.68094974]
[1753386024378,0.7517,3730.3,3729.9,3.13642891]
[1753386024556,0.1344,3730.4,3730.1,2.68082679]
[1753386024754,0.1344,3730.9,3730.2,6.17361616]
[1753386024961,0.8058,3731.0,3730.6,8.85414219]
[1753386025160,0.8058,3731.0,3730.6,9.30854219]
[1753386025683,1.7203,3731.0,3730.6,0.1344]
[1753386026073,1.7203,3731.0,3730.6,2.81492869]
[1753386026589,1.7203,3731.0,3730.6,0.1344]
[1753386027695,4.2476,3731.0,3730.6,0.1344]
[1753386027874,3.8058,3731.0,3730.7,2.6804142]
[1753386028042,3.8058,3731.0,3730.6,0.1344]
[1753386028784,4.2476,3731.0,3730.6,0.1344]
[1753386029190,1.2476,3731.0,3730.6,0.1344]
[1753386029394,4.2476,3731.0,3730.6,0.1344]
[1753386030397,0.1344,3731.1,3730.7,0.4544]
[1753386030699,2.68049597,3730.7,3729.8,3.13548212]
[1753386030905,0.9145,3730.6,3729.9,2.6819902]
[1753386031109,0.1344,3730.4,3729.9,2.8163902]
[1753386031254,1.0489,3730.4,3729.9,2.8163902]
[1753386032557,1.0489,3730.4,3730.0,2.68095956]
[1753386032791,0.1344,3730.4,3730.0,3.13535956]
[1753386032995,0.1344,3730.4,3730.0,3.14889139]
[1753386033160,0.5762,3730.4,3729.9,0.1354]
[1753386033507,0.5762,3730.4,3730.0,2.68096514]
[1753386033807,0.5762,3730.4,3729.9,0.5898]
[1753386033808,7.00016514,3730.0,3729.9,0.001]
[1753386034305,7.91466514,3730.0,3729.9,0.001]
[1753386034709,12.16666514,3730.0,3729.9,0.001]
[1753386035223,5.2337,3730.0,3729.9,0.001]
[1753386035411,12.16666514,3730.0,3729.9,0.001]
[1753386035715,13.65476513,3730.0,3729.9,0.001]
[1753386037709,9.40276513,3730.0,3729.9,0.001]
[1753386037915,12.16666514,3730.0,3729.9,0.001]
[1753386038810,7.91466514,3730.0,3729.9,0.001]
[1753386038977,9.4847,3730.0,3729.9,0.001]
[1753386039177,12.16566514,3730.0,3729.9,0.001]
[1753386043135,7.91466514,3730.0,3729.9,0.001]
[1753386043334,14.67522035,3730.0,3729.9,0.001]
[1753386043736,14.80962035,3730.0,3729.9,0.001]
[1753386044135,10.55862035,3730.0,3729.9,0.001]
[1753386044357,14.80962035,3730.0,3729.9,0.001]
[1753386044507,14.80862035,3730.0,3729.9,0.001]
[1753386045836,10.55862035,3730.0,3729.9,0.001]
[1753386046000,12.29906514,3730.0,3729.9,0.001]
[1753386047004,9.6181,3730.0,3729.9,0.001]
[1753386047802,5.3681,3730.0,3729.9,0.001]
[1753386048003,9.6181,3730.0,3729.9,0.001]
[1753386048221,5.3681,3730.0,3729.9,0.001]
[1753386048537,7.9334,3730.0,3729.9,0.001]
[1753386049612,3.6844,3730.0,3729.9,0.001]
[1753386049898,7.9334,3730.0,3729.9,0.001]
[1753386050105,7.3834,3730.0,3729.9,0.001]
[1753386050517,3.1344,3730.0,3729.9,0.001]
[1753386050838,7.3834,3730.0,3729.9,0.001]
[1753386051537,3.5943,3730.0,3729.9,0.001]
[1753386051738,7.3824,3730.0,3729.9,0.001]
[1753386054147,7.8423,3730.0,3729.9,0.001]
[1753386055937,8.3248,3730.0,3729.9,0.001]
[1753386056115,7.3824,3730.0,3729.9,0.001]
[1753386056845,3.1344,3730.0,3729.9,0.4528]
[1753386057036,7.3814,3730.0,3729.9,0.4528]
[1753386057233,7.3814,3730.0,3729.9,0.001]
[1753386059050,8.7238,3730.0,3729.9,0.001]
[1753386059254,0.55,3729.4,3728.4,0.4528]
[1753386059552,3.55,3729.2,3728.5,0.9091]
[1753386059755,6.92768085,3729.1,3728.5,0.4573]
[1753386059971,3.47373595,3729.5,3728.6,0.9091]
[1753386060272,4.246,3729.5,3728.9,0.7572]
[1753386060450,3.0,3729.4,3729.0,0.9091]
[1753386060745,3.0,3729.4,3728.9,0.7572]
[1753386060946,3.0,3729.4,3729.1,0.9091]
[1753386061127,5.68139652,3729.4,3729.2,0.4518]
[1753386061451,0.55,3729.1,3727.9,0.4518]
[1753386061652,1.31585834,3729.4,3727.9,0.4518]
[1753386061653,2.68216885,3728.4,3727.9,0.4518]
[1753386061955,2.68216885,3728.4,3727.7,3.45415967]
[1753386062150,2.68216885,3728.4,3728.0,0.4518]
[1753386062516,2.68233148,3728.1,3728.0,0.4518]
[1753386062851,3.0,3727.7,3726.7,0.7716]
[1753386063015,3.0,3727.7,3726.9,0.4518]
[1753386063215,3.55,3727.5,3726.2,2.68369477]
[1753386063439,0.55,3727.1,3726.1,0.4573]
[1753386063653,3.0,3727.2,3726.3,6.49401336]
[1753386063851,4.245,3727.1,3726.5,2.68348316]